Cogmind - Beta 13 @@@ ROGUE MODE // 2024.06.13 @ 16:01:21 Player: JackZewap Result: Self-destructed Performance ------------- Evolutions (1) 500 Regions Visited (4) 800 Robots Destroyed (24) 120 Value Destroyed (721) 721 Prototype IDs (6) 120 Alien Tech Used (0) 0 Bonus (0) 0 TOTAL SCORE: 2261 Bonus ------- None Cogmind --------- Core Integrity 298/400 Matter 260/300 Energy 49/265 System Corruption 0% Temperature Cool (15) Movement Core (400) Ox7 Location -9/Mines Parts ------- > --- POWER (1) -------- Improved Ion Engine > --- PROPULSION (2) --- (None) > --- UTILITY (4) ------ Cooling System Small Storage Unit ECM Suite Shield Generator > --- WEAPON (2) ------- Improved EM Shotgun Improved EM Shotgun > --- INVENTORY (8) ---- Improved Ion Engine Improved Ion Engine Improved Hover Unit Airjet Airjet Trap Extractor (0/4) Improved Datajack Maul Peak State ------------ > --- POWER ------------ Improved Ion Engine > --- PROPULSION ------- Airjet Airjet > --- UTILITY ---------- Cooling System Small Storage Unit ECM Suite Shield Generator > --- WEAPON ----------- Improved EM Shotgun Improved EM Shotgun > --- INVENTORY -------- Improved Ion Engine Improved Ion Engine Improved Hover Unit Airjet Trap Extractor Improved Datajack Maul [Rating: 21] Favorites ----------- Power Improved Ion Engine Engine Improved Ion Engine Propulsion Airjet Treads Improved Treads Wheel Compact Wheel Hover Unit Airjet Utility Small Storage Unit Device Heat Sink Storage Small Storage Unit Protection Medium Armor Plating Weapon Beam Rifle Energy Gun Beam Rifle Ballistic Gun Light Assault Rifle Build | -11 -10 -10 -9 -9 ------- Run | Yrd Mat Min Mat Min Slots Evolved 2 | . . . 2 . Power . | . . . . . Propulsion . | . . . . . Utility 2 | . . . 2 . Weapon . | . . . . . Parts Attached 52 | 6 6 . 39 1 Power 12 | 1 2 . 9 . Engine 12 | 1 2 . 9 . Core . | . . . . . Reactor . | . . . . . Propulsion 11 | 2 2 . 7 . Treads 2 | . 2 . . . Leg . | . . . . . Wheel 2 | 2 . . . . Hover 7 | . . . 7 . Flight . | . . . . . Utility 14 | 1 1 . 11 1 Device 8 | . 1 . 6 1 Storage 1 | 1 . . . . Processor . | . . . . . Hackware . | . . . . . Protection 5 | . . . 5 . Artifact . | . . . . . Weapon 15 | 2 1 . 12 . Energy Gun 9 | 1 1 . 7 . Energy Cannon . | . . . . . Ballistic Gun 6 | 1 . . 5 . Ballistic Cannon . | . . . . . Launcher . | . . . . . Special Weapon . | . . . . . Impact Weapon . | . . . . . Slashing Weapon . | . . . . . Piercing Weapon . | . . . . . Special Melee Weapon . | . . . . . Unidentified Prototypes 1 | . . . 1 . Parts Lost 2 | . . . 2 . Power 1 | . . . 1 . Propulsion 1 | . . . 1 . Utility . | . . . . . Weapon . | . . . . . Highest Loss Streak 1 | . . . 1 . To Critical Strikes . | . . . . . Average Slot Usage (%) 83 | . 93 100 79 77 Engine 11 | . 14 14 10 11 Treads 4 | . 8 28 1 . Wheel 4 | . 19 . . . Hover 13 | . . . 19 . Device 12 | . 8 14 13 33 Storage 11 | . 14 14 11 11 Protection 1 | . . . 2 . Energy Gun 18 | . 22 28 16 22 Ballistic Gun 5 | . 5 . 5 . Naked Turns . | . . . . . Heaviest Build 29 | 14 16 16 29 22 Greatest Support 46 | 32 46 46 46 16 Greatest Overweight (x) 2 | . . . 2 1 Average Overweight (x) . | . . . . 1 Largest Inventory Capacity 8 | 8 8 8 8 8 Average Capacity 7 | 6 8 8 8 8 Most Carried 8 | . 8 8 8 8 Average Carried 6 | . 3 8 7 7 Final Capacity 8 | 8 8 8 8 8 Final Carried 8 | . 8 8 8 8 Class Distribution -------------------- 92% | Mutant 7% | Scavenger-Mutant Dominant Class ---------------- Mutant | -10/Materials Mutant | -10/Mines Mutant | -9/Materials Mutant | -9/Mines Resources | -11 -10 -10 -9 -9 ----------- Run | Yrd Mat Min Mat Min Matter Collected 822 | 239 117 . 466 . Remotely . | . . . . . Salvage Created 931 | . 174 89 668 . Parts 49 | . 5 4 40 . Haulers Intercepted 2 | . 1 . 1 . Recyclers Shooed . | . . . . . Parts Field Recycled . | . . . . . Retrieved Matter . | . . . . . Parts Self-Destructed . | . . . . . Prevented . | . . . . . Kills | -11 -10 -10 -9 -9 ------- Run | Yrd Mat Min Mat Min Combat Hostiles Destroyed 20 | . 3 2 15 . Guns 19 | . 3 2 14 . Classes Destroyed 6 | . 2 . 4 . Hauler 2 | . 1 . 1 . Recycler 1 | . . . 1 . Mechanic 1 | . . . 1 . Swarmer 3 | . . . 3 . Grunt 13 | . 3 2 8 . Sentry 4 | . . . 4 . Best Kill Streak 4 | . 2 2 4 . Combat Bots Only 4 | . 2 2 4 . Max Kills in Single Turn 2 | . 1 1 2 . Gunslinging 1 | . . . 1 . Exploded . | . . . . . Melee . | . . . . . Uniques/NPCs Destroyed . | . . . . . Combat | -11 -10 -10 -9 -9 -------- Run | Yrd Mat Min Mat Min Hostile Shots Fired 120 | . 13 6 82 19 Missed 46 | . 6 2 30 8 Damage Taken 887 | . 77 56 654 100 Core 102 | . . . 76 26 Absorbed by Shields 39 | . . . . 39 Regen/Repaired (Parts) 73 | . . . 73 . Core Remaining (%) 100 | 100 . 100 . . Volleys Fired 80 | . 14 6 59 1 Largest 2 | . 2 2 2 2 Hottest 130 | . 90 90 130 90 Shots Fired 160 | . 28 12 118 2 Gun 160 | . 28 12 118 2 Cannon . | . . . . . Launcher . | . . . . . Special . | . . . . . Kinetic 58 | . 12 . 46 . Thermal 98 | . 16 12 70 . Explosive . | . . . . . Electromagnetic 4 | . . . 2 2 Robot Hit Streak 19 | . 12 15 19 2 Robot Miss Streak 6 | . 1 2 5 6 Penetration Max . | . . . . . Secondary Targets 2 | . . . 2 . Max Gunslinging Chain 1 | . . . 1 . Shots Hit Robots 113 | . 22 9 80 2 Core Hits 57 | . 7 5 44 1 Critical Kills . | . . . . . Critical Parts Destroyed . | . . . . . Critical Strikes 6 | . 2 . 4 . Burn 6 | . 2 . 4 . Melee Attacks . | . . . . . Impact . | . . . . . Slashing . | . . . . . Piercing . | . . . . . Sneak Attacks . | . . . . . Combat Hostiles . | . . . . . Follow-up Attacks . | . . . . . Damage Inflicted 1469 | . 279 106 1066 18 Guns 1469 | . 279 106 1066 18 Cannons . | . . . . . Explosions . | . . . . . Melee . | . . . . . Ramming . | . . . . . Kinetic 400 | . 102 . 298 . Thermal 1051 | . 177 106 768 . Explosive . | . . . . . Electromagnetic 18 | . . . . 18 Impact . | . . . . . Slashing . | . . . . . Piercing . | . . . . . Highest Corruption . | . . . . . Average Corruption . | . . . . . Corruption Purged . | . . . . . Corruption Blocked . | . . . . . Overload Shots . | . . . . . Overflow Damage . | . . . . . Projectiles . | . . . . . Explosions . | . . . . . Melee . | . . . . . Knockbacks . | . . . . . Impact . | . . . . . Kinetic . | . . . . . Secondary . | . . . . . Self-Inflicted Damage . | . . . . . Shots . | . . . . . Rammed . | . . . . . Targets Rammed . | . . . . . Kicked . | . . . . . Crushed . | . . . . . Highest Temperature 436 | . 130 54 436 15 Average Temperature 80 | . 64 28 95 15 Received Heat Transfer 333 | . 42 36 198 57 Effects 1 | . . . 1 . Short Circuit 1 | . . . 1 . Siege Activations . | . . . . . Robots Corrupted . | . . . . . Combat Hostiles . | . . . . . Parts Fried . | . . . . . Impact Corruptions . | . . . . . Robots Melted 1 | . . . 1 . Combat Hostiles 1 | . . . 1 . Parts Melted 4 | . 1 1 2 . Heat Transferred 2816 | . 642 285 1889 . Parts Sabotaged . | . . . . . Parts Stolen . | . . . . . Parts Stripped . | . . . . . Power Chain Reactions . | . . . . . Alert | -11 -10 -10 -9 -9 ------- Run | Yrd Mat Min Mat Min Peak Influence 365 | . 97 87 365 113 Initial 113 | . . 37 33 113 Average 135 | . 62 60 171 113 Maximum Alert Level 1 | . . . 1 . Low Security (%) 72 | 100 100 100 59 100 Level 1 27 | . . . 40 . Level 2 . | . . . . . Level 3 . | . . . . . Level 4 . | . . . . . Level 5 . | . . . . . High Security . | . . . . . Max Security . | . . . . . Squads Dispatched 4 | . 1 . 3 . Investigation 4 | . 1 . 3 . Extermination . | . . . . . Reinforcement . | . . . . . Assault . | . . . . . Garrison . | . . . . . Intercept . | . . . . . Searches Triggered . | . . . . . Construction Impeded . | . . . . . Haulers Reinforced . | . . . . . Active Scanning Responses . | . . . . . Cargo Convoy Interrupts . | . . . . . Stealth | -11 -10 -10 -9 -9 --------- Run | Yrd Mat Min Mat Min Distress Signals 1 | . . . 1 . Communications Jammed . | . . . . . Distress Signals . | . . . . . Times Spotted 52 | . 4 2 26 20 Peak Tracking Total 20 | . 3 2 5 20 Tactical Retreats 4 | . . . 4 . Traps | -11 -10 -10 -9 -9 ------- Run | Yrd Mat Min Mat Min Traps Triggered 2 | . 1 . 1 . Indirectly . | . . . . . Trap Hack Attempts . | . . . . . Triggered . | . . . . . Disarmed . | . . . . . Reprogrammed . | . . . . . Reused . | . . . . . Traps Extracted . | . . . . . Installed . | . . . . . Triggered . | . . . . . Machines | -11 -10 -10 -9 -9 ---------- Run | Yrd Mat Min Mat Min Machines Disabled 2 | . . . 2 . Max in Single Turn 1 | . . . 1 . Machines Repaired . | . . . . . Machines Dismantled . | . . . . . Machines Sabotaged . | . . . . . Overloaded Fab Kills . | . . . . . Hacking | -11 -10 -10 -9 -9 --------- Run | Yrd Mat Min Mat Min Machines Accessed 9 | . 2 . 7 . Terminals 7 | . 2 . 5 . Fabricators . | . . . . . Repair Stations 2 | . . . 2 . Recycling Units . | . . . . . Scanalyzers . | . . . . . Garrison Access . | . . . . . Total Hacks 35 | . 7 . 28 . Successful 20 | . 4 . 16 . Failed 15 | . 3 . 12 . Catastrophic 1 | . . . 1 . Database Lockouts . | . . . . . Manual 16 | . 2 . 14 . Terminals 25 | . 7 . 18 . Fabricators . | . . . . . Repair Stations 10 | . . . 10 . Recycling Units . | . . . . . Scanalyzers . | . . . . . Garrison Access . | . . . . . Terminal Hacks 8 | . 3 . 5 . Record 1 | . . . 1 . Robot Analysis 2 | . 1 . 1 . Prototype ID Bank 3 | . 2 . 1 . Emergency Access Points 1 | . . . 1 . Registered Components 1 | . . . 1 . Fabricator Hacks . | . . . . . Repair Station Hacks 7 | . . . 7 . Scan Component 4 | . . . 4 . Repair 3 | . . . 3 . Recycling Unit Hacks . | . . . . . Scanalyzer . | . . . . . Garrison Access Hacks . | . . . . . Unauthorized Hacks 5 | . 1 . 4 . Terminals 5 | . 1 . 4 . Botnet 5 | . 1 . 4 . Fabricators . | . . . . . Repair Stations . | . . . . . Recycling Units . | . . . . . Scanalyzers . | . . . . . Garrison Access . | . . . . . Data Cores Recovered . | . . . . . Used . | . . . . . Hacking Detections 7 | . 2 . 5 . Full Trace Events 2 | . . . 2 . Feedback Events . | . . . . . Feedback Blocked . | . . . . . Robot Schematics Acquired . | . . . . . Robots Built . | . . . . . Authchips . | . . . . . Time . | . . . . . Total Robot Build Rating . | . . . . . Part Schematics Acquired . | . . . . . Parts Built . | . . . . . Authchips . | . . . . . Time . | . . . . . Total Part Build Rating . | . . . . . Parts Repaired 3 | . . . 3 . Time 117 | . . . 117 . Parts Recycled . | . . . . . Recycled Matter . | . . . . . Retrieved Matter . | . . . . . Retrieved Components . | . . . . . Parts Scanalyzed . | . . . . . Part Schematics Acquired . | . . . . . Parts Damaged . | . . . . . Bothacking | -11 -10 -10 -9 -9 ------------ Run | Yrd Mat Min Mat Min Used RIF Installer . | . . . . . Robots Hacked . | . . . . . Non-combat . | . . . . . Combat . | . . . . . Robot Hacks Applied . | . . . . . Relay Couplers Released . | . . . . . Fabnet Peak Effective % . | . . . . . Robots Rewired . | . . . . . Allies Hacked . | . . . . . Hacks Repelled . | . . . . . Allies | -11 -10 -10 -9 -9 -------- Run | Yrd Mat Min Mat Min Total Allies . | . . . . . Largest Group . | . . . . . Highest-Rated Group . | . . . . . Highest-Rated Ally . | . . . . . Total Orders . | . . . . . Ally Attacks . | . . . . . Total Damage . | . . . . . Kills . | . . . . . Allies Corrupted . | . . . . . Allies Melted . | . . . . . Intel | -11 -10 -10 -9 -9 ------- Run | Yrd Mat Min Mat Min Robot Analysis Total 2 | . 1 . 1 . Derelict Logs Recovered . | . . . . . Drone Launches . | . . . . . Drone Recoveries . | . . . . . Exploration | -11 -10 -10 -9 -9 ------------- Run | Yrd Mat Min Mat Min Turns Passed 1429 | 52 310 74 986 7 Spaces Moved 857 | 44 207 36 569 1 Core 2 | 2 . . . . Treads 110 | . 46 36 28 . Legs . | . . . . . Wheels 203 | 42 161 . . . Hover 542 | . . . 541 1 Flight . | . . . . . Fastest Speed 50 | 50 100 160 56 116 Average Speed 106 | 97 113 160 101 116 Slowest Speed 180 | 100 160 160 180 116 Overloaded Moves . | . . . . . Propulsion Burnouts . | . . . . . Robots Hopped . | . . . . . Cave-ins Triggered . | . . . . . Exploration Rate (%) 19 | 3 30 14 42 6 Regions Visited 4 Branch Regions 2 Pre-discovered Areas . | . . . . . Known Exits Taken . | . . . . . Unknown Exits Taken 4 | 1 1 1 1 . Scrap Searched . | . . . . . Spaces Dug . | . . . . . Terrain Destroyed . | . . . . . Melee . | . . . . . Projectile . | . . . . . AOE . | . . . . . Terrain Rammed . | . . . . . Walls Destroyed . | . . . . . Machines Disabled . | . . . . . Actions | -11 -10 -10 -9 -9 --------- Run | Yrd Mat Min Mat Min Total 1230 | 49 258 41 877 5 Wait 175 | . 21 . 154 . Move 853 | 43 206 35 568 1 Hop . | . . . . . Pick Up 17 | . 6 . 11 . Fast Attach 37 | 6 3 . 28 . Attach 6 | . 1 . 4 1 Detach 10 | . 3 . 6 1 Swap 9 | . 2 . 7 . Drop 43 | . 2 . 40 1 Fire 80 | . 14 6 59 1 Melee . | . . . . . Ram . | . . . . . Kick . | . . . . . Crush . | . . . . . Escape Stasis . | . . . . . Rewire . | . . . . . Trap . | . . . . . Miscellaneous . | . . . . . Route ------- -11/Scrapyard -10/Materials (discovered 2 exits: *Mat / [*Min]) -10/Mines -9/Materials -9/Mines History --------- Turn | Location | Event 32 | -11/Scrapyard | Discovered new exit (range 14) 53 | -11/Scrapyard | Entered Materials 219 | -10/Materials | Discovered new exit (range 7) 247 | -10/Materials | Discovered new exit (range 15) 325 | -10/Materials | Build established: Mutant 363 | -10/Materials | Entered Mines 407 | -10/Mines | Discovered new exit (range 13) 437 | -10/Mines | Entered Materials 437 | -9/Materials | Evolved 2 slots: Utility x2 739 | -9/Materials | Repaired Airjet 967 | -9/Materials | Repaired Broken Airjet 1081 | -9/Materials | Repaired Heat Sink 1408 | -9/Materials | Discovered new exit (range 12) 1423 | -9/Materials | Entered Mines 1424 | -9/Mines | Assembled infested the area 1430 | -9/Mines | Self-destructed Last Messages --------------- 01297_ K-01 Serf collects debris. 01322_ Acquired ECM Suite. 01392_ Triggered Alarm Trap. 01392_ An alarm sounds. 01392_ ALERT: Alarm triggered, dispatching investigation squad. 01399_ U-05 Engineer lays Concrete. 01408_ EXIT=FOUND 01409_ K-01 Serf cleans the Machine. 01413_ K-01 Serf destroyed. 01415_ W-16 Scout sends out distress signal. LOCATION=UNKNOWN GOAL=ESCAPE Something is scanning the area. 01424_ ALERT: Infestation in the mines, dispatching Demolisher response squad. 01424_ K-01 Serf collects debris. 01425_ K-01 Serf destroyed. 01426_ Dropped Airjet. 01427_ as-11615 suffers critical hit (Destroy). 01427_ as-11615 destroyed. Map ----- +----------------------------------------------------+ | | | | | | | | | | | | | | | | | | | | | | | | | | | | | | | | | | | | | | | | | | | ???????????????????????????????????????????????? | | ???????????????????????????????????????????????? | | ??????????????????###############??????????????? | | ??????????????????# a aa ##?????????????? | | ??????????????????# @a a aaa ??????? | | ??????????????????# a aaa aa a ??????? | | ??????????????????# *aaa ####< ??????? | | ??????????????????# %a #??????????????? | | ??????????????????# """ """ """ #??????????????? | | ??????????????????# """ """ """ #??????????????? | | ??????????????????# """ """ """ #??????????????? | | ??????????????????###############??????????????? | | ???????????????????????????????????????????????? | | ???????????????????????????????????????????????? | | ???????????????????????????????????????????????? | | ???????????????????????????????????????????????? | | ???????????????????????????????????????????????? | | ???????????????????????????????????????????????? | | ???????????????????????????????????????????????? | | ???????????????????????????????????????????????? | | ???????????????????????????????????????????????? | | ???????????????????????????????????????????????? | | ???????????????????????????????????????????????? | | ???????????????????????????????????????????????? | | ???????????????????????????????????????????????? | | ???????????????????????????????????????????????? | | ???????????????????????????????????????????????? | | ???????????????????????????????????????????????? | | ???????????????????????????????????????????????? | +----------------------------------------------------+ Best States ------------- Heat Dissipation 58 Energy Generation 12 Energy Capacity 265 Matter Stores 300 Matter Capacity 300 Sight Range 16 Terrain Scan Density 10 ECM Strength 1 Armor Coverage 450 Evasion (%) 53 Recoil Reduction 2 Item Schematics ----------------- None Robot Schematics ------------------ None Fabricated ------------ Nothing Alien Tech Used ----------------- None Achievements -------------- None Challenges ------------ None Game ------ Seed GreatSpacefoldOptics Manual? 0 Play Time 00:11:39 Cumulative 82.9 hours Start 2024.06.13 @ 15:49:51 End 2024.06.13 @ 16:01:21 Sessions 1 Manual Loads 0 Difficulty Rogue Special Mode None Game No. 94 Rogue 88 Adventurer 6 Explorer 0 Win Type - Total 0 Types 0/0/0/0/0/0/0/0/0 Lore% 35 Gallery% 50 Achievement% 37 Wizard Run 0 Options --------- Layout 0 ASCII 0 Keyboard 1 Movement Numpad Keybinds 0 Fullscreen 0 Font 14/Smallcaps Map View 76x50 Zoom Use 0% Tactical HUD 1 Map Filters NONE Filters NONE Steam 1 RUN: 0f1a8724-7357-48af-8a13-217f3632624d